{"text_format":"1","workbook":"xlsx","n_sheets":2,"sheets":["Configurateur","Feuil2"],"not_rendered":{"charts":0,"images":4,"macros":1,"external_links":0,"defined_names":0,"comments":0,"pivot_tables":0},"unopened":[],"bounds":{"document_bytes":16777216,"sheet_cells":100000,"rows_first":2000,"rows_last":500,"rows_between":2000,"halvings":0,"cell_chars":16384,"cell_head_chars":4096},"cells_cut":0,"cells_raw":0,"read":"whole","date_system":"1900"}

{"sheet":"Configurateur","index":0,"n_rows":42,"n_cols":12,"rows_kept":42,"cut":false,"hidden":false,"merged":[[29,6,29,7],[31,6,31,7],[32,6,32,7],[33,6,33,7],[41,2,41,13],[1,2,1,14],[34,6,34,7],[34,8,34,9],[34,10,34,11],[33,10,33,11],[32,10,32,11],[31,10,31,11],[31,8,31,9],[32,8,32,9],[33,8,33,9],[31,3,31,5],[32,3,32,5],[33,3,33,5],[34,3,34,5],[29,10,29,11],[29,8,29,9]]}
[]
[null,null,"Bienvenue sur notre simulateur de prix Cogilog"]
[]
[]
[null,null,"Un configurateur va vous permettre de définir vos besoins "]
[]
[null,null,"Merci de bien vouloir répondre aux questions suivantes :"]
[]
[null,null,". Combien d'entreprises / SCI (N° SIREN) souhaitez vous gérer",null,null,null,null,2]
[null,null,{"$f":"IF(H9>1,\". Le réseau internet entre les différentes entreprises est il stable ?\",\"\")","v":". Le réseau internet entre les différentes entreprises est il stable ?"},null,null,null,null,1]
[null,null,null,null,null,null,null,null,null,null,"1er Poste","U. comp"]
[null,null,". Combien d'utilisateurs vont utiliser la gestion",null,null,null,null,3,null,null,{"$f":"IF(H12>=1,1,0)","v":1},{"$f":"IF(H12>=2,H12-1,0)","v":2}]
[]
[null,null,". Combien d'utilisateurs vont utiliser la comptabilité",null,null,null,null,1,null,null,{"$f":"IF(H14>=1,1,0)","v":1},{"$f":"IF(H14>=2,H14-1,0)","v":0}]
[]
[null,null,". Combien d'utilisateurs vont utiliser la paye",null,null,null,null,1,null,null,{"$f":"IF(H16>=1,1,0)","v":1},{"$f":"IF(H16>=2,H16-1,0)","v":0}]
[]
[null,null,". Des personnes veulent elles se connecter de l'extérieur",null,null,null,null,1]
[]
[null,null,". Effectuez-vous des virements fournisseurs",null,null,null,null,1]
[]
[]
[]
[]
[null,null,{"$f":"IF(AND(H10=2,H9>1),CONCATENATE(\"Le réseau n'étant pas stable entre les différents sites, veuillez renseigner le questionnaire par site pour obtenir le prix (remplir Oui dans réseau)\",\".    \"),IF(H9=1,\" Nous allons calculer vos besoins avec une version Mono entreprise \",IF(AND(H9<=3,H10=1),\" Nous allons calculer vos besoins avec une version Standard 3 entreprises \",\" Nous allons calculer vos besoins avec une version Pro Nombre d'entreprises illimité\" )))","v":" Nous allons calculer vos besoins avec une version Standard 3 entreprises "}]
[null,null,{"$f":"IF(AND(H12>=1,H14>=1,H16>=1),\" Nous vous conseillons l'achat d'un pack Gestion, Compta, Paye\",IF(AND(H12>=1,H14>=1),\" Nous vous conseillons l'achat d'un pack Gestion, Compta\",\"Il n'existe pas de pack pour l'ensemble demandé, le calcul va donc s'effectuer sur la base des prix unitaires\"))","v":" Nous vous conseillons l'achat d'un pack Gestion, Compta, Paye"}]
[null,null,{"$f":"IF(OR(H18=1,H20=1),CONCATENATE(\" Nous vous proposons d'ajouter en option \",IF(H18=1,\"Le module accès distant\",),IF(H20=1,\",  Le module remise en Banque\",)),\"\")","v":" Nous vous proposons d'ajouter en option Le module accès distant,  Le module remise en Banque"}]
[]
[]
[null,null,null,null,null,null,"Version Mono",null,"Version Standard",null,"Version Pro"]
[null,null,null,null,null,null,{"$f":"IF(H9=1,1,0)","v":0},null,{"$f":"IF(AND(H9>1,H9<=3,H10=1),1,0)","v":1},null,{"$f":"IF(AND(H9<=3,H10=1),0,1)","v":0}]
[null,null,null,"Tarif des logiciels",null,null,{"$f":"IF(G31=1,IF(AND(H12>=1,H14>=1,H16>=1),Feuil2!D24,IF(AND(H12>=1,H14>=1),Feuil2!D23,K12*Feuil2!D10+Configurateur!K14*Feuil2!D9+Configurateur!K16*Feuil2!D11)),\"\")","v":""},null,{"$f":"IF(I31=1,IF(AND(H12>=1,H14>=1,H16>=1),Feuil2!D62,IF(AND(H12>=1,H14>=1),Feuil2!D61,K12*Feuil2!D50+K14*Feuil2!D49+K16*Feuil2!D51)),\"\")","v":600},null,{"$f":"IF(K31=1,(K12)*Feuil2!D94+(K14*Feuil2!D84)+(K16*Feuil2!D88),\"\")","v":""}]
[null,null,null,"Tarif des utilisateurs supplémentaires",null,null,{"$f":"IF(G31=1,L12*Feuil2!E10+L14*Feuil2!E9+L16*Feuil2!E11,\"\")","v":""},null,{"$f":"IF(I31=1,L12*Feuil2!E10+L14*Feuil2!E9+L16*Feuil2!E11,\"\")","v":380},null,{"$f":"IF(K31=1,L12*Feuil2!E10+L14*Feuil2!E84+L16*Feuil2!E11,\"\")","v":""}]
[null,null,null,"Tarif des options",null,null,{"$f":"IF(G31=1,IF(H18=1,IF(H20=1,Feuil2!D19+Feuil2!D17,Feuil2!D19),IF(H20=1,Feuil2!D17,0)),\"\")","v":""},null,{"$f":"IF(I31=1,IF(H18=1,IF(H20=1,Feuil2!D19+Feuil2!D17,Feuil2!D19),IF(H20=1,Feuil2!D17,0)),\"\")","v":290},null,{"$f":"IF(K31=1,IF(H18=1,IF(H20=1,Feuil2!D19+Feuil2!D17,Feuil2!D19),IF(H20=1,Feuil2!D17,0)),\"\")","v":""}]
[null,null,null,"Total commande",null,null,{"$f":"IF(G31=1,SUM(G32:G34),\"\")","v":""},null,{"$f":"IF(I31=1,SUM(I32:I34),\"\")","v":1270},null,{"$f":"IF(K31=1,SUM(K32:K34),\"\")","v":""}]
[]
[]
[null,null,"Il existe d'autres modules tels que la TVA, les immobilisations, les liasses, la gestion de temps …"]
[null,null,"Pour alléger le questionnaire, nous avons préféré ne pas les intégrer."]
[null,null,"Merci de nous transmettre vos coordonnées par si vous souhaitez savoir si d'autres modules peuvent être nécessaires à votre gestion."]
[]
[null,null,"Le tarif public est donné à titre indicatif, d'autres promotions peuvent s'appliquer suivant votre configuration."]

{"sheet":"Feuil2","index":1,"n_rows":114,"n_cols":6,"rows_kept":114,"cut":false,"hidden":true,"merged":[[109,3,109,5]]}
[]
[null,null,null,"Oui"]
[null,null,null,"Non"]
[]
[]
[]
[]
[null,null,"Version Standar Mono entreprise","1er Poste","Poste suppl."]
[null,null,"Comptabilité",190,100]
[null,null,"Gestion Commerciale",210,190]
[null,null,"Paye",270,160]
[null,null,"Immobilisations",140,100]
[null,null,"TVA pour télédéclarer et télépayer la TVA par internet avec EDI-TVA",100,40]
[null,null,"CVAE pour calculer, télédéclarer la CVAE par EDI",30,10]
[null,null,"Honoraires avec formulaire DAS-2 et télédéclaration DADS-U",60,20]
[null,null,"Gestion du temps",210,20]
[null,null,"+Option remise en Banque pour cogilog Gestion Commerciale",120,"Gratuit"]
[null,null,"+Option DADS-U, attestations Pôle employ et DUCS-EDI pour Cogilog Paye","+110","Gratuit"]
[null,null,"Acces distant pour travailler a distance via internet",170,"Gratuit"]
[]
[]
[]
[null,null,"Pack Comptabilité+Gestion Commerciale",300]
[null,null,"Pack Comptabilité + Gestion+ Paye",500]
[null,null,"Pack Comptabilité+ Immobilisations",240]
[null,null,"Pack Comptabilité+ Immobilisations+ Gestion",400]
[null,null,"Pack Comptabilité+Immobilisations+Gestion+Paye",600]
[]
[null,null,"Pour acheter des postes supplémentaires vous pouvez utiliser les lignes au-dessus pour "]
[null,null,"chaque logiciel séparément"]
[]
[null,null,"Liasses Fiscales (millesime 2014)","1er Poste","Poste suppl."]
[null,null,"SCI 2072, imprimés Cerfa 2072-S et 2072-C",100,60]
[null,null,"Liasses fiscales régime BIC  Réel normal: formulaires Cerfa série 2050, 2065, 2031, 2067",110,72]
[null,null,"Liasses fiscales régime BIC Réel normal: formulaires Cerfa série 2050, 2065,2031,2067 + Télédéclaration EDI-TDFC",200,122]
[null,null,"Liasses fiscales régime BIC Réel simplifié: formulaire Cerfa 2033, 2065, 2031, et 2067",80,54]
[null,null,"Liasses fiscales régime BIC Réel simplifié: formulaires Cerfa 2033, 2065, 2031, et 2067 + Télédécmaration EDI-TDFC",130,84]
[null,null,"Liasses fiscales régime BNC: formulaires Cerfa 2035",50,30]
[null,null,"Liasses fiscales régime BNC: formulaires Cerfa 2035, Télédéclaration EDI-TDFC",90,55]
[null,null,"Liasses fiscales régime BA Réel Normal: formulaires Cerfa série 2144 et 2143",110,72]
[null,null,"Liasses fiscales régime BA Réel Normal: formulaires Cerfa série 2114 et 2143+ Télédéclarations EDI-TDFC",200,122]
[null,null,"Liasses fiscales régime BA Réel simplifié: formulaires Cerfa 2139",80,54]
[null,null,"Liasses fiscales régime BA Réel simplifié: formulaires Cerfa 2139+ Télédéclarations EDI-TDFC",130,84]
[null,null,"Liasses fiscles regime SNM: formulaires Cerfa 2036 et 2036 bis+ Télédéclarations EDI-TDFC",100,60]
[]
[null,null,"Version standard jusqu’a 3 entreprises"]
[]
[null,null,"Version standard jusqu’a 3 entreprises","1er poste","Poste suppl."]
[null,null,"Comptabilité",240,100]
[null,null,"Gestion Commerciale",260,190]
[null,null,"Paye",320,160]
[null,null,"Immobilisations",200,100]
[null,null,"TVA pour télédéclarer et télépayer la TVA par internet avec EDI-TVA",150,60]
[null,null,"CVAE pour calculer, télédéclarer et télépayer la CVAE par EDI",45,10]
[null,null,"Honoraires avec formulaires DAS-2 et télédéclarations DADS-U",60,20]
[null,null,"Gestion des temps",300,20]
[null,null,"+Options Remise en banque pour COGILOG Gestion Commerciale",120,"Gratuit"]
[null,null,"+Option DADS-U, attestations Pôle employ et DUCS-EDI pour COGILOG paye","+110","Gratuit"]
[null,null,"Accès distant pour travailler à distance via internet",170,"Gratuit"]
[]
[null,null,"Pack Comptabilité + Gestion Commerciale",400]
[null,null,"Pack Comptabilité + Gestion + Paye",600]
[null,null,"Pack Comptabilité + Immobilisations",340]
[null,null,"Pack Comptabilité + Immobilisations + Paye",500]
[null,null,"Pack Comptabilité + Immobilisations +Gestion + Paye",700]
[null,null,"Pour acheter des postes supplémentaires ou des options, vous pouvez utiliser les lignes au-dessus pour chaque logiciel séparément. "]
[]
[null,null,"Liasses Fiscales (millesime 2014)","1er Poste","Poste suppl."]
[null,null,"SCI 2072, imprimés Cerfa 2072-S et 2072-C",150,90]
[null,null,"Liasses fiscales régime BIC  Réel normal: formulaires Cerfa série 2050, 2065, 2031, 2067",120,72]
[null,null,"Liasses fiscales régime BIC Réel normal: formulaires Cerfa série 2050, 2065,2031,2067 + Télédéclaration EDI-TDFC",220,122]
[null,null,"Liasses fiscales régime BIC Réel simplifié: formulaire Cerfa 2033, 2065, 2031, et 2067",90,54]
[null,null,"Liasses fiscales régime BIC Réel simplifié: formulaires Cerfa 2033, 2065, 2031, et 2067 + Télédécmaration EDI-TDFC",150,84]
[null,null,"Liasses fiscales régime BNC: formulaires Cerfa 2035",60,30]
[null,null,"Liasses fiscales régime BNC: formulaires Cerfa 2035, Télédéclaration EDI-TDFC",100,55]
[null,null,"Liasses fiscales régime BA Réel Normal: formulaires Cerfa série 2144 et 2143",120,72]
[null,null,"Liasses fiscales régime BA Réel Normal: formulaires Cerfa série 2114 et 2143+ Télédéclarations EDI-TDFC",220,122]
[null,null,"Liasses fiscales régime BA Réel simplifié: formulaires Cerfa 2139",90,54]
[null,null,"Liasses fiscales régime BA Réel simplifié: formulaires Cerfa 2139+ Télédéclarations EDI-TDFC",150,84]
[null,null,"Liasses fiscles regime SNM: formulaires Cerfa 2036 et 2036 bis+ Télédéclarations EDI-TDFC",150,90]
[null,null,"Version PRO pour nombre illimité d’entreprises"]
[]
[null,null,"Version PRO pour un nombre illimité d’entreprises","1er poste","Poste Suppl","Licence site *"]
[null,null,"Commptabilité",360,120,1440]
[null,null,"Immobilisations",300,100,1200]
[null,null,"Pack Comptabilité+ Immobilisations",600,200,2400]
[null,null,"TVA avec formules papiers+ télédéclaration+télérèglement par EDI-TVA",330,110,1320]
[null,null,"Paye avec DADS-U, attestations Pôle employ et DUCS-EDI",500,160,1980]
[null,null,"Honoraires avec télédéclarations DADS-U des honoraires versés et formulaires DAS-2",60,20,180]
[null,null,"SCI 2072, imprimés Cerfa 3072-S et 2071-C",280,120,840]
[null,null,"IS avec télérèglement par EDI-PAIEMENT",120,40,360]
[null,null,"CVAE: Calcul, télédéclarations et télépaiement EDI",120,40,360]
[null,null,"Gestion des temps",400,20,660]
[null,null,"Gestion commerciale",380,190]
[null,null,"Gestion commercial avec remise en banque",500,190]
[null,null,"Prélèvements bancaires",180]
[]
[null,null,"L’Acces distant pour travailler à distance via internet est de 170€ pour le premier poste et gratuit pour les postes supplémentaires."]
[]
[]
[null,null,"Liasses fiscales avec Plaquette de présenta° des comptes","1er Poste","Poste suppl.","Licence site*"]
[null,null,"Régimes BIC + BNC",500,200,2000]
[null,null,"Régimes BIC + BNC + EDI-TDFC",900,400,3200]
[null,null,"Régimes BIC+ BNC+ BA",1000,400,4000]
[null,null,"Régimes BIC+ BNC + BA +EDI-TDFC",1500,650,5500]
[null,null,"+ Options Régime SCM (2036 et 2036 bis) pour EDI-TDFC**","+200",90,600]
[null,null,"+ Options Régime de groupe (filliales et meres) pour EDI-TDFC **","+300",160,1000]
[null,null,"+ Option Juridique pour les Assamblées Générales **","+160",80,480]
[]
[null,null,"Liasses fiscales sans plaquette de presentation des comptes"]
[null,null,"Régime BIC + BNC",250,150,1000]
[null,null,"Régime BIC + BNC+ EDI-TDFC",650,350,2200]
[null,null,"Régime BIC + BNC + BA",500,300,2000]
[null,null,"Régime BIC + BNC + BA + EDI-TDFC",1000,550,3500]